Cogmind - Beta 16.1 @@@ ROGUE MODE // 2026.02.17 @ 23:36:29 Player: Kaisercar Result: Self-destructed Performance ------------- Evolutions (6) 3000 Regions Visited (5) 1000 Robots Destroyed (33) 165 Value Destroyed (1143) 1143 Prototype IDs (24) 480 Alien Tech Used (0) 0 Bonus (1414) 1414 TOTAL SCORE: 7202 Bonus ------- High Alert Combat Kills 41 Follower Combat Kills 628 Registered with UFD 300 Met Optimus in HQ 500 Friendly Fire -55 Cogmind --------- Core Integrity 956/1150 Matter 153/300 Energy 100/100 System Corruption 7% Temperature Cool (0) Movement Core (200) Ox3 Location -4/Factory Parts ------- > --- POWER (2) -------- (None) > --- PROPULSION (5) --- Cooled Gravmag System > --- UTILITY (9) ------ Medium Storage Unit Advanced Signal Interpreter Surveybot 17 Chip Makeshift Hacking Suite System Shield > --- WEAPON (3) ------- (None) > --- INVENTORY (10) --- Improved Focal Shield Remote Shield Long-range Missile Launcher Peak State ------------ > --- POWER ------------ Light Ion Engine > --- PROPULSION ------- Wheel Antigrav System Gyrokinetic Inverter Cooled Gravmag System Cooled Gravmag System > --- UTILITY ---------- Large Storage Unit Improved Sensor Array Advanced Signal Interpreter Surveybot 17 Chip Improved Focal Shield Makeshift Hacking Suite Scrapoid Pod > --- WEAPON ----------- Cooled Plasma Rifle Heavy Machine Gun Heavy Machine Gun > --- INVENTORY -------- Advanced Heat Sink Advanced Heat Sink Large Matter Pod Structural Scanner Terrain Scanner Improved Terrain Scanner Makeshift Salvage Targeting Computer Advanced ECM Suite Phase Shifter Backup Plating III Remote Shield Long-range Proton Cannon KE Penetrator Heavy Shock Bomb Launcher Long-range Missile Launcher [Rating: 89] Favorites ----------- Power Ion Engine Engine Ion Engine Power Core Fission Core Propulsion Improved Carbon-fiber Leg Treads Light Treads Leg Improved Carbon-fiber Leg Wheel Wheel Hover Unit Gyrokinetic Inverter Utility High-capacity Storage Unit Device V3-11A's Pendant Storage High-capacity Storage Unit Processor Surveybot 17 Chip Hackware Makeshift Hacking Suite Protection Makeshift Kinetic Plating Weapon Powered Cannon Energy Gun Medium Laser Energy Cannon Powered Cannon Ballistic Gun Heavy Machine Gun Ballistic Cannon Battle Cannon Special Weapon CPS Tube Build | -11 -10 -10 -7 -5 -4 ------- Run | Yrd Mat Sub Scr Fac Fac Slots Evolved 12 | . . . . 10 2 Power 1 | . . . . . 1 Propulsion 3 | . . . . 3 . Utility 7 | . . . . 6 1 Weapon 1 | . . . . 1 . Parts Attached 80 | 7 3 8 11 46 5 Power 6 | 1 . . 2 2 1 Engine 3 | 1 . . 1 1 . Core 3 | . . . 1 1 1 Reactor . | . . . . . . Propulsion 26 | 2 1 2 3 17 1 Treads 3 | 2 . 1 . . . Leg 8 | . . . 2 6 . Wheel 7 | . 1 1 1 3 1 Hover 8 | . . . . 8 . Flight . | . . . . . . Utility 29 | 2 2 2 4 17 2 Device 14 | 1 . 1 . 12 . Storage 5 | 1 1 . 1 1 1 Processor 4 | . 1 . 2 1 . Hackware 3 | . . . . 2 1 Protection 3 | . . 1 1 1 . Artifact . | . . . . . . Weapon 19 | 2 . 4 2 10 1 Energy Gun 3 | 2 . . . 1 . Energy Cannon 7 | . . 1 1 5 . Ballistic Gun 5 | . . 1 . 3 1 Ballistic Cannon 3 | . . 2 . 1 . Launcher . | . . . . . . Special Weapon 1 | . . . 1 . . Impact Weapon . | . . . . . . Slashing Weapon . | . . . . . . Piercing Weapon . | . . . . . . Special Melee Weapon . | . . . . . . Unidentified Prototypes 4 | . . 1 . 3 . Parts Lost 31 | . . . . 24 7 Power 4 | . . . . 3 1 Propulsion 14 | . . . . 11 3 Utility 7 | . . . . 5 2 Weapon 6 | . . . . 5 1 Highest Loss Streak 15 | . . . . 15 7 To Critical Strikes 1 | . . . . . 1 Average Backups 16 | 2 8 14 18 15 3 Power . | . 1 1 . . . Propulsion 1 | 1 2 1 1 1 . Utility 9 | . 3 8 10 9 2 Weapon 3 | . 1 2 4 4 1 Tool/Special . | . . . . . . Unused Backups 48 | . . 8 19 19 2 Power 1 | . . 1 . . . Propulsion 4 | . . 2 2 . . Utility 18 | . . . 7 10 1 Weapon 24 | . . 5 9 9 1 Tool/Special 1 | . . . 1 . . Average Slot Usage (%) 89 | . 100 99 86 85 52 Engine 11 | . 14 14 13 4 . Core 5 | . . . 9 2 . Treads 6 | . 14 22 1 . . Leg 13 | . . . 20 11 . Wheel 3 | . 14 5 1 3 4 Hover 1 | . . . . 7 15 Device 6 | . 13 10 . 16 8 Storage 11 | . 14 14 12 4 3 Processor 8 | . . 2 10 10 10 Energy Gun 1 | . 28 2 . 1 . Energy Cannon 10 | . . 11 12 4 . Ballistic Gun 1 | . . 2 . 4 . Ballistic Cannon 4 | . . 11 1 2 . Peak Build Rating 89 | 7 9 15 45 89 59 Average Rating 38 | 4 7 13 38 74 52 On Entrance 19 | . 7 9 15 43 41 Avg Prop Armor Cover (%) 9 | . 12 11 . 5 15 Naked Turns . | . . . . . . Heaviest Build 84 | 15 30 39 64 84 20 Greatest Support 92 | 40 10 40 40 92 16 Greatest Overweight (x) 19 | . 2 3 19 5 1 Average Overweight (x) 1 | . 1 . 1 1 . Largest Inventory Capacity 20 | 8 15 15 20 20 10 Average Capacity 17 | 7 14 15 19 16 8 Most Carried 20 | 4 14 15 20 20 4 Average Carried 16 | 2 8 14 18 15 3 Final Capacity 20 | 8 15 15 20 5 10 Final Carried 20 | 4 14 15 20 5 3 Class Distribution -------------------- 83% | Mutant 6% | Scavenger-Skirmisher 6% | Skirmisher Dominant Class ---------------- Mutant | -10/Materials Mutant | -10/Subcaves Mutant | -7/Scraptown Scavenger-Skirmisher | -5/Factory Hacker-Mutant | -4/Factory Resources | -11 -10 -10 -7 -5 -4 ----------- Run | Yrd Mat Sub Scr Fac Fac Matter Collected 2255 | 270 118 326 140 1267 134 Remotely . | . . . . . . Salvage Created 1678 | 147 . 165 120 1224 22 Parts 73 | 5 . 8 7 52 1 Haulers Intercepted 2 | . . . . 2 . Recyclers Shooed 3 | . 2 . . 1 . Parts Field Recycled . | . . . . . . Retrieved Matter . | . . . . . . Parts Self-Destructed 8 | . . 8 . . . Prevented . | . . . . . . Parts Restored . | . . . . . . Kills | -11 -10 -10 -7 -5 -4 ------- Run | Yrd Mat Sub Scr Fac Fac Combat Hostiles Destroyed 21 | . . 5 2 13 1 Guns 9 | . . 2 . 6 1 Cannons 8 | . . 3 2 3 . AOE 2 | . . . . 2 . Classes Destroyed 13 | 2 . 3 2 6 . Worker 2 | . . . . 2 . Builder 2 | . . . . 2 . Tunneler 2 | 2 . . . . . Hauler 2 | . . . . 2 . Recycler 4 | 1 . . . 3 . Swarmer 7 | . . 2 . 4 1 Grunt 3 | . . . . 3 . Sentry 1 | . . 1 . . . Hunter 2 | . . . . 2 . Programmer 4 | . . . . 4 . Subdweller 2 | . . 2 . . . Guru 1 | . . . 1 . . Scrapper 1 | . . . 1 . . Best Kill Streak 4 | 3 . 2 1 4 1 Combat Bots Only 4 | . . 2 1 4 1 Max Kills in Single Turn 2 | 1 . 2 1 2 1 Gunslinging 1 | . . . . 1 . Exploded 1 | . . . . 1 . Melee . | . . . . . . Uniques/NPCs Destroyed . | . . . . . . Combat | -11 -10 -10 -7 -5 -4 -------- Run | Yrd Mat Sub Scr Fac Fac Hostile Shots Fired 300 | . . 12 2 215 71 Missed 85 | . . 2 . 65 18 Hits 215 | . . 10 2 150 53 Projectile 215 | . . 10 2 150 53 AOE 2 | . . . . 2 . Critical Strikes 5 | . . 1 . 3 1 Damage Taken 4337 | . . 203 42 3275 817 Core 748 | . . . . 554 194 Absorbed by Shields 54 | . . . . 54 . Ignored by Resistances 71 | . . . . 71 . Regen/Repaired (Parts) 116 | . . . 116 . . Core Remaining (%) 81 | 100 . . 100 44 . Volleys Fired 128 | 8 4 45 4 61 6 Largest 3 | 2 2 2 1 3 1 Hottest 203 | 90 90 93 40 203 23 Shots Fired 247 | 16 8 77 4 136 6 Gun 119 | 16 8 18 . 71 6 Cannon 127 | . . 59 3 65 . Launcher . | . . . . . . Special 1 | . . . 1 . . Kinetic 124 | . . 44 . 74 6 Thermal 108 | 8 4 31 3 62 . Explosive . | . . . . . . Electromagnetic 14 | 8 4 2 . . . Robot Hit Streak 9 | 5 7 5 3 9 3 Robot Miss Streak 6 | 2 1 3 1 6 1 Penetration Max . | . . . . . . Secondary Targets 1 | . . . . 1 . Max Gunslinging Chain 1 | . . . . 1 . Shots Hit Robots 107 | 8 7 19 3 66 4 Core Hits 46 | 4 1 8 2 29 2 Critical Kills 3 | . . . . 3 . Critical Parts Destroyed . | . . . . . . Critical Strikes 6 | 1 . . . 5 . Burn 3 | 1 . . . 2 . Meltdown 3 | . . . . 3 . Melee Attacks . | . . . . . . Impact . | . . . . . . Slashing . | . . . . . . Piercing . | . . . . . . Sneak Attacks . | . . . . . . Combat Hostiles . | . . . . . . Follow-up Attacks . | . . . . . . Damage Inflicted 3071 | 116 102 390 137 2244 82 Guns 1274 | 116 102 90 . 901 65 Cannons 1495 | . . 300 137 1058 . Explosions 273 | . . . . 273 . Melee . | . . . . . . Ramming 29 | . . . . 12 17 Kinetic 1277 | . . 272 . 940 65 Thermal 1661 | 63 51 118 137 1292 . Explosive . | . . . . . . Electromagnetic 104 | 53 51 . . . . Impact . | . . . . . . Slashing . | . . . . . . Piercing . | . . . . . . Highest Corruption 7 | . . . . 7 7 Average Corruption 2 | . . . . 2 7 Corruption Purged . | . . . . . . Corruption Blocked . | . . . . . . Effects 17 | . . . . 17 . Message Errors 6 | . . . . 6 . Matter Fused 3 | . . . . 3 . Heat Flow Errors 2 | . . . . 2 . Energy Discharges 2 | . . . . 2 . Parts Fused 1 | . . . . 1 . Data Loss (minor) 2 | . . . . 2 . Data Loss (major) 1 | . . . . 1 . Overload Shots . | . . . . . . Overflow Damage 88 | . . . . 88 . Projectiles 39 | . . . . 39 . Explosions 49 | . . . . 49 . Melee . | . . . . . . Knockbacks 4 | . . 2 . 2 . Impact . | . . . . . . Kinetic 4 | . . 2 . 2 . Secondary . | . . . . . . Self-Inflicted Damage 126 | . . . . 119 7 Shots 2 | . . . . 2 . Rammed 7 | . . . . . 7 Targets Rammed 8 | . . . . 1 7 Kicked 1 | . . . . 1 . Crushed . | . . . . . . Highest Temperature 230 | 210 60 . 40 230 . Average Temperature 50 | 103 25 . 17 42 . Received Heat Transfer 397 | . . 66 24 307 . Siege Activations . | . . . . . . Martial Activations . | . . . . . . Shielding Activations . | . . . . . . Robots Disrupted . | . . . . . . Combat Hostiles . | . . . . . . Robots Corrupted . | . . . . . . Combat Hostiles . | . . . . . . Parts Fried . | . . . . . . Impact Corruptions . | . . . . . . Robots Melted 3 | . . . . 3 . Combat Hostiles 2 | . . . . 2 . Parts Melted 14 | 1 . 2 . 11 . Heat Transferred 1901 | 259 148 259 . 1235 . Parts Sabotaged . | . . . . . . Parts Stolen . | . . . . . . Parts Stripped . | . . . . . . Power Chain Reactions . | . . . . . . Alert | -11 -10 -10 -7 -5 -4 ------- Run | Yrd Mat Sub Scr Fac Fac Maximum Alert Level 2 | . . . . 2 1 Low Security (%) 49 | 100 100 . . 39 69 Level 1 30 | . . . . 35 30 Level 2 20 | . . . . 25 . Level 3 . | . . . . . . Level 4 . | . . . . . . Level 5 . | . . . . . . High Security . | . . . . . . Max Security . | . . . . . . Peak Influence 489 | 10 . . . 489 213 Initial 213 | . . . . . 213 Average 194 | 1 . . . 232 184 Influence Increases 1300 | 15 . 189 . 1076 20 Destroy 0b10 Robot/C 580 | . . 100 . 460 20 Destroy 0b10 Robot/NC 60 | 15 . . . 45 . Destroy Leader 114 | . . . . 114 . Allied During Kill 108 | . . 29 . 79 . Disable Machine 180 | . . . . 180 . Destroy Structure 138 | . . . . 138 . Lose Combat Pursuer 120 | . . 60 . 60 . Influence Decreases 1197 | 15 . 189 . 639 354 Entered New Map 224 | . . . . . 224 Time Decay 583 | 15 . 149 . 359 60 Lost Part 310 | . . . . 240 70 Lost Ally 80 | . . 40 . 40 . Squads Dispatched 8 | . . . . 8 . Investigation 2 | . . . . 2 . Extermination 3 | . . . . 3 . Reinforcement 3 | . . . . 3 . Assault . | . . . . . . Garrison . | . . . . . . Intercept . | . . . . . . Searches Triggered . | . . . . . . Construction Impeded 1 | . . . . 1 . Haulers Reinforced 1 | . . . . 1 . Active Scanning Responses . | . . . . . . Cargo Convoy Interrupts . | . . . . . . Stealth | -11 -10 -10 -7 -5 -4 --------- Run | Yrd Mat Sub Scr Fac Fac Distress Signals 2 | . . . . 2 . Communications Jammed . | . . . . . . Distress Signals . | . . . . . . Times Spotted 65 | . 3 15 7 35 5 Peak Tracking Total 6 | . 2 3 2 6 5 Tactical Retreats 5 | . . 1 . 4 . Traps | -11 -10 -10 -7 -5 -4 ------- Run | Yrd Mat Sub Scr Fac Fac Traps Triggered . | . . . . . . Indirectly . | . . . . . . Trap Hack Attempts . | . . . . . . Triggered . | . . . . . . Disarmed . | . . . . . . Reprogrammed . | . . . . . . Reused . | . . . . . . Traps Extracted . | . . . . . . Installed . | . . . . . . Triggered . | . . . . . . Machines | -11 -10 -10 -7 -5 -4 ---------- Run | Yrd Mat Sub Scr Fac Fac Machines Disabled 15 | . . 2 1 12 . Max in Single Turn 5 | . . 1 . 5 . Machines Repaired . | . . . . . . Machines Dismantled . | . . . . . . Machines Sabotaged . | . . . . . . Overloaded Fab Kills . | . . . . . . Hacking | -11 -10 -10 -7 -5 -4 --------- Run | Yrd Mat Sub Scr Fac Fac Machines Accessed 18 | . . 4 10 4 . Terminals 2 | . . . . 2 . Fabricators . | . . . . . . Repair Stations . | . . . . . . Recycling Units 2 | . . . . 2 . Scanalyzers . | . . . . . . Garrison Access . | . . . . . . Total Hacks 85 | . . 17 62 6 . Successful 82 | . . 17 62 3 . Failed 3 | . . . . 3 . Catastrophic 1 | . . . . 1 . Database Lockouts . | . . . . . . Manual 4 | . . . . 4 . Terminals 2 | . . . . 2 . Fabricators . | . . . . . . Repair Stations . | . . . . . . Recycling Units 4 | . . . . 4 . Scanalyzers . | . . . . . . Garrison Access . | . . . . . . Terminal Hacks 79 | . . 17 62 . . Record 75 | . . 14 61 . . Open Door 1 | . . 1 . . . Proto ID Catalog 2 | . . 1 1 . . Release Object 1 | . . 1 . . . Fabricator Hacks . | . . . . . . Repair Station Hacks . | . . . . . . Recycling Unit Hacks 1 | . . . . 1 . Retrieve Components 1 | . . . . 1 . Scanalyzer . | . . . . . . Garrison Access Hacks . | . . . . . . Unauthorized Hacks 2 | . . . . 2 . Terminals . | . . . . . . Fabricators . | . . . . . . Repair Stations . | . . . . . . Recycling Units 2 | . . . . 2 . Fedlink 2 | . . . . 2 . Scanalyzers . | . . . . . . Garrison Access . | . . . . . . Data Cores Recovered 2 | . 2 . . . . Used . | . . . . . . Hacking Detections 3 | . . . . 3 . Full Trace Events . | . . . . . . Feedback Events . | . . . . . . Feedback Blocked . | . . . . . . Robot Schematics Acquired . | . . . . . . Robots Built . | . . . . . . Authchips . | . . . . . . Time . | . . . . . . Total Robot Build Rating . | . . . . . . Part Schematics Acquired . | . . . . . . Parts Built . | . . . . . . Authchips . | . . . . . . Time . | . . . . . . Total Part Build Rating . | . . . . . . Part Studies Acquired . | . . . . . . Parts Repaired . | . . . . . . Time . | . . . . . . Parts Recycled . | . . . . . . Recycled Matter . | . . . . . . Retrieved Matter . | . . . . . . Retrieved Components 9 | . . . . 9 . Parts Scanalyzed . | . . . . . . Part Schematics Acquired . | . . . . . . Parts Damaged . | . . . . . . Bothacking | -11 -10 -10 -7 -5 -4 ------------ Run | Yrd Mat Sub Scr Fac Fac Used RIF Installer . | . . . . . . Robots Hacked . | . . . . . . Non-combat . | . . . . . . Combat . | . . . . . . Robot Hacks Applied . | . . . . . . Relay Couplers Released . | . . . . . . Fabnet Peak Effective % . | . . . . . . Robots Rewired . | . . . . . . Allies Hacked . | . . . . . . Hacks Repelled . | . . . . . . Allies | -11 -10 -10 -7 -5 -4 -------- Run | Yrd Mat Sub Scr Fac Fac Total Allies 8 | . . 7 1 . . Largest Group 6 | . . 6 6 5 . Highest-Rated Group 178 | . . 112 178 161 . Highest-Rated Ally 85 | . . 19 85 85 . Initial UFD Resources 56 | . . . . 38 56 Total Orders . | . . . . . . Ally Attacks 106 | . . 30 14 62 . Total Damage 2294 | . . 388 387 1519 . Kills 18 | . . 3 4 11 . Allies Corrupted . | . . . . . . Allies Melted 1 | . . . 1 . . Intel | -11 -10 -10 -7 -5 -4 ------- Run | Yrd Mat Sub Scr Fac Fac Active Infowar (turns) 1959 | 16 218 . . 1610 115 Sensors 1309 | . . . . 1194 115 IFF 167 | . . . . 167 . Terrain 1363 | . . . . 1362 1 Structural 9 | . . . . 9 . Seismic 234 | 16 218 . . . . Robot Analysis Total . | . . . . . . Derelict Logs Recovered 1 | . . 1 . . . Drone Launches . | . . . . . . Drone Recoveries . | . . . . . . Exploration | -11 -10 -10 -7 -5 -4 ------------- Run | Yrd Mat Sub Scr Fac Fac Turns Passed 10383 | 118 221 2532 5585 1795 132 Spaces Moved 6090 | 52 177 1662 3075 1004 120 Core 5 | 2 . . 1 2 . Treads 1090 | 50 . 904 136 . . Legs 2795 | . . . 2409 386 . Wheels 2000 | . 177 758 529 431 105 Hover 200 | . . . . 185 15 Flight . | . . . . . . Fastest Speed 45 | 50 95 110 100 45 50 Average Speed 156 | 155 109 142 176 136 85 Slowest Speed 1000 | 160 110 240 1000 190 110 Overloaded Moves 27 | . . . . 27 . Propulsion Burnouts . | . . . . . . Robots Hopped . | . . . . . . Potential Cave-ins . | . . . . . . Cave-ins Triggered . | . . . . . . Exploration Rate (%) 39 | 4 30 90 92 16 3 Regions Visited 5 Branch Regions 2 Pre-discovered Areas 4 | . . 3 . 1 . Known Exits Taken 3 | . 1 . 1 1 . Unknown Exits Taken 2 | 1 . 1 . . . Scrap Searched 12 | . . 4 8 . . Spaces Dug 2 | . . 1 . 1 . Terrain Destroyed 73 | . . 1 . 72 . Melee . | . . . . . . Projectile 17 | . . 1 . 16 . AOE 56 | . . . . 56 . Terrain Rammed . | . . . . . . Walls Destroyed . | . . . . . . Machines Disabled . | . . . . . . Actions | -11 -10 -10 -7 -5 -4 --------- Run | Yrd Mat Sub Scr Fac Fac Total 6732 | 70 195 1758 3249 1320 140 Wait 215 | . 3 13 60 139 . Move 6085 | 51 176 1661 3074 1003 120 Hop . | . . . . . . Pick Up 96 | 4 9 12 46 25 . Fast Attach 45 | 7 . 5 8 20 5 Attach 28 | . . 1 3 23 1 Detach 10 | . . . 2 8 . Swap 22 | . 3 3 2 14 . Drop 95 | . . 18 50 26 1 Fire 128 | 8 4 45 4 61 6 Melee . | . . . . . . Ram 7 | . . . . . 7 Kick 1 | . . . . 1 . Crush . | . . . . . . Escape Stasis . | . . . . . . Rewire . | . . . . . . Trap . | . . . . . . Miscellaneous . | . . . . . . Route ------- -11/Scrapyard -10/Materials (discovered 2 exits: [*Mat] / *Sub) -10/Subcaves (discovered 3 exits: [*Mat] / [*Rec] / *Scr) -7/Scraptown (discovered 2 exits: *Fac x2) -5/Factory -4/Factory History --------- Turn | Location | Event 24 | -11/Scrapyard | Discovered new exit (range 16) 119 | -11/Scrapyard | Entered Materials 120 | -10/Materials | Met a group of wandering Federalists 235 | -10/Materials | Discovered new exit (range 15) 235 | -10/Materials | Discovered new exit (range 12) 303 | -10/Materials | Build established: Mutant 338 | -10/Materials | Identified exit to Subcaves 340 | -10/Materials | Entered Subcaves 340 | -10/Subcaves | Accompanied by 2 allies 341 | -10/Subcaves | Continued accompanying wandering Federalists (4) 341 | -10/Subcaves | Approached by a straggling Scientist 343 | -10/Subcaves | Learned location of Zion (-7) 523 | -10/Subcaves | Met a Zionite searching for "candidates" 566 | -10/Subcaves | Wandering Federalist uncovered a shortcut to Scraptown 654 | -10/Subcaves | Shifting Twisted Machinery released Battle Cannon 655 | -10/Subcaves | Shifting Twisted Machinery released Sub. Machine Gun 664 | -10/Subcaves | Shifting Twisted Machinery released Sub. Machine Gun 706 | -10/Subcaves | Shifting Twisted Machinery released Mak. Kinetic Plating 836 | -10/Subcaves | Ambushed by Subdwellers from Twisted Machinery 890 | -10/Subcaves | Visited triangular shrine 898 | -10/Subcaves | Found Prototype Device 898 | -10/Subcaves | Identified V3-11A's Pendant 903 | -10/Subcaves | Befriended Subdweller 1109 | -10/Subcaves | Visited 4L-MR0's lab 1135 | -10/Subcaves | Found Powered Cannon 1223 | -10/Subcaves | Befriended Subdweller 1223 | -10/Subcaves | Befriended Subdweller 1343 | -10/Subcaves | Befriended Subdweller 1558 | -10/Subcaves | Befriended Subdweller 1573 | -10/Subcaves | Befriended Subdweller 1705 | -10/Subcaves | Discovered new exit (range 9) 1766 | -10/Subcaves | Discovered new exit (range 15) 1850 | -10/Subcaves | Visited Clippyterm 1855 | -10/Subcaves | Learned location of Deep Caves (-7) 1855 | -10/Subcaves | Learned Factory trap positions 1979 | -10/Subcaves | Shifting Twisted Machinery released Mak. Power Source 2046 | -10/Subcaves | Shifting Twisted Machinery released Spk. Treads 2632 | -10/Subcaves | A swath of the cavern ceiling suddenly collapsed 2713 | -10/Subcaves | Befriended Subdweller 2872 | -10/Subcaves | Entered Scraptown 2872 | -7/Scraptown | Accompanied by 5 allies 2957 | -7/Scraptown | Heard Great Nut preacher, LISTEN AND RECITE! 3379 | -7/Scraptown | Discovered new exit (range 7) 3391 | -7/Scraptown | Identified exit to Factory 3488 | -7/Scraptown | Visited CPS Storage 3493 | -7/Scraptown | Attached CPS modules to TQ-65P(R). 3520 | -7/Scraptown | Visited CR-KLE's Repair Center 3532 | -7/Scraptown | CR-KLE repaired 3 parts 3559 | -7/Scraptown | Visited Bundlers 3580 | -7/Scraptown | Attached Powered Cannon, gained temporary slot: Power 3694 | -7/Scraptown | Visited Red Mages 3758 | -7/Scraptown | Visited Supply Room 4414 | -7/Scraptown | Visited Cyclists 4488 | -7/Scraptown | Visited Spacefarers 4598 | -7/Scraptown | Visited UFD Registry 4602 | -7/Scraptown | Registered with UFD as "Beamtank" 4651 | -7/Scraptown | Entered Cyclist Reading Room 4790 | -7/Scraptown | Visited Cartography Club 4846 | -7/Scraptown | Found Surveybot 17 Chip 5027 | -7/Scraptown | Visited Science Guys 5208 | -7/Scraptown | Visited Scrap Suit Storage 5396 | -7/Scraptown | Discovered exit to Factory (range 5) 5489 | -7/Scraptown | Visited Junk Repository 5585 | -7/Scraptown | Visited Supply Room 5637 | -7/Scraptown | Visited Scrapoid Pod Storage 5650 | -7/Scraptown | Found Scrapoid Pod 5994 | -7/Scraptown | Visited Abandonware Association 6019 | -7/Scraptown | Learned abandonware demo "TRNCOAT.EXE" 6106 | -7/Scraptown | Visited Botcube Research 6220 | -7/Scraptown | Found Lrg. Botcube 7788 | -7/Scraptown | Lrg. Botcube activated 7826 | -7/Scraptown | Lrg. Botcube completed mutation into legged form, armed with 4 guns. 7925 | -7/Scraptown | Visited Chapter 10 7992 | -7/Scraptown | Visited Curators Association 8147 | -7/Scraptown | Met Optimus 8147 | -7/Scraptown | Accepted into 0bPrime 8352 | -7/Scraptown | Civil war broke out across Scraptown 8457 | -7/Scraptown | Entered Factory 8457 | -5/Factory | Accompanied by 5 allies 8457 | -5/Factory | Evolved 10 slots: Propulsion x3, Utility x6, Weapon x1 8458 | -5/Factory | Loaded intel: 82 trap records 8475 | -5/Factory | Lost 5 allies 8769 | -5/Factory | Build established: Skirmisher 8870 | -5/Factory | Discovered new exit (range 19) 8953 | -5/Factory | Identified exit to Factory 8997 | -5/Factory | Loaded intel: 8 recycling unit locations 9079 | -5/Factory | Learned location of Protoforge (-2) 9134 | -5/Factory | Lost 4 allies 9197 | -5/Factory | Spotted B-75 Beast 9291 | -5/Factory | Lost 15 parts (2p6n4u3w) 9656 | -5/Factory | Build established: Scavenger-Skirmisher 10221 | -5/Factory | Core integrity fell below 50% 10252 | -5/Factory | Entered another Factory area 10252 | -4/Factory | Evolved 2 slots: Power x1, Utility x1 10269 | -4/Factory | Lost 3 parts (1p1n1w) 10384 | -4/Factory | Self-destructed Last Messages --------------- 10355_ Acquired Autogun. 10360_ S-27 Virus destroyed. 10363_ Acquired 22 matter. 10367_ Imp. Sensor Array destroyed. 10369_ Autogun destroyed. 10372_ Acquired 10 matter. 10375_ Slammed into S-27 Virus. 10377_ Lgt. Nuclear Core destroyed. 10378_ Slammed into S-27 Virus. 10378_ Imp. Terrain Scanner destroyed. 10378_ System corrupted by crushing effect (+5). 10378_ Destabilizing: System corrupted (+2). 10379_ Slammed into S-27 Virus. 10379_ Surveybot 17 Chip broken. 10379_ Destabilizing: Short circuit. 10380_ Critical hit (Destroy). 10380_ Centrium Wheel destroyed. 10380_ Slammed into S-27 Virus. 10382_ Gyrokinetic Inverter destroyed. 10383_ Cld. Gravmag System destroyed. Map ----- +----------------------------------------------------+ | ?????????????" " " #???????????????????? | | ???????????" " " " #???????????????????? | | ???????????" " " " #?? ? ?????????????? | | ???????????" " " " ## ? ?#??????????? | | ?????????????" " " ## #??????????? | | ???????????????" " ## " +??????????? | | ????????????????? #? #??????????? | | ??????????????????#+#? #??????????? | | ??????????????????# #?? ???????????? | | ??????????????????# #??# ###########?#? | | ??????????????##### #### ## # | | ???????????????+ ## """ # | | ???????????????# ## """ # | | ???????????????# ## """ # | | ???????????????# """ # "" # | | ???????????????# """"" # !! "" # | | ???????????????+ """"" + # | | ???????????????# # ! # | | ???????????????# != # # | | ???????????????##### = # # | | ???????????????????#=! # " F" # | | ????????????""?#???# ! # """" # | | ?????????????? #####+##s # # | | ????????????#???# s ############# | | ????????????????# # s # ??? | | ????????????????# # @ # """"""?? | | ???????????????## # # ""S""" ? | | ????????????????####### # """ # | | ????????????##??????# # # | | ????????? ??????????# # # | | ????????????????????# + # | | ???????????#?????#??# # # | | ????????????????????# # """""" # | | ???????????????#########+##+# """""" # | | ???????????#??## # """""" ? | | ??????????#????# # """"""????? | | ??????????????## """ """ # ?????? | | ?????????????#?# """ """ #####???????? | | ???????????????# """ """ #????#??#???? | | ???????????????# #???????????? | | ????????????#??# """ """ #???????????? | | ???????????????# """ """ #???????????? | | ???????????????# """ """ #???##??????? | | ???????????????# #???????????? | | ???????????????# ? #???????????? | | ???????????????# ?? #???????????? | | ???????????????##########??#????????????? | | ????????????????????????????????????????? | | ????????????????????????????????????????? | | ????????????????????????????????????????? | +----------------------------------------------------+ Best States ------------- Heat Dissipation 59 Energy Generation 24 Energy Capacity 465 Matter Stores 300 Matter Capacity 300 Sight Range 16 Robot Scan Range 15 Terrain Scan Range 20 Terrain Scan Density 1210 Armor Coverage 100 Resistance: KI 25 Phase Shifting 5 Evasion (%) 60 Recoil Reduction 2 Particle Charging 15 Offensive Hacking 11 Defensive Hacking 10 Item Schematics ----------------- None Robot Schematics ------------------ None Fabricated ------------ Nothing Repaired ---------- Nothing Studied --------- None Alien Tech Used ----------------- None Achievements -------------- Bob, First Of His Name Civilization 2243 Frankenstein Link The Feds SUBSUB Strength In Numbers Uncivil War Challenges ------------ None Game ------ Seed ProjectionSalvageScrapsphere Manual? 0 Play Time 01:19:50 Cumulative 85.7 hours Start 2026.02.17 @ 22:05:44 End 2026.02.17 @ 23:36:29 Sessions 3 Manual Loads 0 Difficulty Rogue Special Mode None Game No. 117 Rogue 42 Adventurer 75 Explorer 0 Win Type - Total 4 Types 4/0/0/0/0/0/0/0/0/0 Lore% 47 Gallery% 48 Achievement% 37 Wizard Run 0 Options --------- Layout 2 ASCII 0 Keyboard 0 Movement Numpad Keybinds 0 Fullscreen 2 Font 24/Smallcaps Map View 50x44 Zoom Use 0% Tactical HUD 1 Map Filters NONE Filters NONE Steam 1 RUN: a44d8c54-b995-42b7-9e66-68ad70715c5a